bitfinex/quotes_ETHUSD_20211001
["timestamp","ask_amount","ask_price","bid_price","bid_amount"]
[1633130048658,4.40502,3287.8,3287.6,0.003]
[1633130048855,0.00502,3287.8,3287.5,2.46]
[1633130049259,3.64020174,3287.7,3287.6,0.003]
[1633130049455,3.0422967,3287.9,3287.6,1.7171005]
[1633130049655,26.5408426,3288.7,3287.7,1.294]
[1633130049857,11.9,3288.7,3288.1,0.008494]
[1633130050356,11.9,3288.7,3288.1,2.76096074]
[1633130050553,0.98068208,3288.7,3288.1,3.67293584]
[1633130050768,0.98068208,3288.7,3288.4,1.8121958]
[1633130050955,0.98068208,3288.7,3288.1,3.66444184]
[1633130050956,0.2579746,3288.4,3288.1,3.66444184]
[1633130051555,0.2579746,3288.4,3288.1,2.75246674]
[1633130052356,0.98068208,3288.7,3288.2,0.02918215]
[1633130053155,0.98068208,3288.7,3288.3,1.67780595]
[1633130053355,2.03978091,3288.8,3288.3,1.67780595]
[1633130053755,6.60128091,3288.8,3288.3,1.67780595]
[1633130054155,2.03978091,3288.8,3288.3,1.67780595]
[1633130054359,2.03978091,3288.8,3288.2,0.02918215]
[1633130054360,0.92044291,3288.7,3288.2,0.02918215]
[1633130055158,3.0409115,3288.9,3288.2,0.02918215]
[1633130056162,0.72616986,3288.6,3288.2,0.02918215]
[1633130056360,1.95115214,3288.4,3288.0,0.003]
[1633130057861,1.69316518,3288.4,3288.0,0.003]
[1633130058063,1.69316518,3288.4,3288.1,0.02919874]
[1633130061267,6.25510518,3288.4,3288.1,0.02919874]
[1633130061865,0.25796266,3288.3,3288.0,0.003]
[1633130062866,0.25796266,3288.3,3287.9,0.003]
[1633130063268,4.56194,3288.4,3287.9,0.003]
[1633130063468,4.56194,3288.4,3288.0,0.02921533]
[1633130063868,4.56194,3288.4,3288.0,0.03221533]
[1633130064271,1.91789403,3288.3,3288.0,0.03221533]
[1633130064871,3.58539403,3288.3,3288.0,0.03221533]
[1633130066668,4.56265,3288.1,3288.0,0.03221533]
[1633130067272,4.56265,3288.1,3288.0,0.003]
[1633130067470,4.82056391,3288.1,3288.0,0.003]
[1633130067670,0.91936225,3287.7,3287.2,0.006]
[1633130068873,0.91936225,3287.7,3287.3,0.02944762]
[1633130069070,7.6042767,3288.1,3287.3,4.59164762]
[1633130069271,0.183,3288.4,3287.4,0.006]
[1633130069471,0.183,3288.4,3287.6,1.90017019]
[1633130069670,4.0662365,3288.5,3287.6,1.90017019]
[1633130069877,4.0662365,3288.5,3287.7,0.003]
[1633130070071,0.77534842,3288.4,3288.0,4.56119]
[1633130070470,1.81189725,3288.2,3288.0,4.56419]
[1633130070671,1.81189725,3288.2,3288.0,0.003]
[1633130071072,0.77534842,3288.4,3287.8,0.003]
[1633130071270,0.77534842,3288.4,3287.8,4.56143]
[1633130071471,1.025,3288.5,3287.8,4.56143]
[1633130071672,1.025,3288.5,3287.9,0.003]
[1633130072071,3.0413327,3288.4,3287.9,0.003]
[1633130072475,3.0413327,3288.4,3287.8,0.88145367]
[1633130072671,1.028,3288.5,3287.8,5.44289367]
[1633130073070,0.25792627,3288.3,3288.0,1.55824712]
[1633130073471,0.25792627,3288.3,3287.8,0.88145367]
[1633130074269,1.73184172,3288.4,3287.8,0.88145367]
[1633130074471,1.73184172,3288.4,3287.9,0.02923192]
[1633130074671,1.73184172,3288.4,3287.9,1.51901454]
[1633130076674,1.73184172,3288.4,3287.9,6.08036454]
[1633130077274,1.73184172,3288.4,3287.9,0.02923192]
[1633130078284,1.73184172,3288.4,3288.0,1.526933]
[1633130078476,0.25793863,3288.3,3287.8,0.88145367]
[1633130079480,0.25793863,3288.3,3288.0,4.56137]
[1633130079878,1.73184172,3288.4,3288.0,4.56137]
[1633130080077,1.028,3288.5,3288.0,4.56137]
[1633130081482,1.94094281,3288.4,3288.0,4.56137]
[1633130081880,1.94094281,3288.4,3288.3,0.9338463]
[1633130083881,2.19893047,3288.4,3288.3,0.9338463]
[1633130084883,2.19893047,3288.4,3287.9,6.30958252]
[1633130085083,2.19893047,3288.4,3287.7,9.12248]
[1633130085285,1.94094281,3288.4,3287.3,2.43969878]
[1633130085489,1.94094281,3288.4,3288.0,0.02921533]
[1633130085883,3.0415468,3288.1,3288.0,0.02921533]
[1633130086084,2.88797459,3288.4,3288.0,0.02921533]
[1633130086287,4.504413,3288.1,3288.0,0.02921533]
[1633130087084,9.066713,3288.1,3288.0,0.02921533]
[1633130087886,4.566713,3288.1,3288.0,0.02921533]
[1633130089284,4.566713,3288.1,3286.8,2.63205998]
[1633130089485,0.97269195,3287.7,3287.0,0.73428425]
[1633130089687,1.5801094,3287.4,3287.1,4.56261]
[1633130089884,0.97269195,3287.7,3287.1,4.56561]
[1633130090085,0.97269195,3287.7,3287.2,0.003]
[1633130090692,0.97269195,3287.7,3287.2,4.56549]
[1633130090885,0.97269195,3287.7,3287.3,0.02944762]
[1633130090886,1.96759831,3287.6,3287.3,0.02944762]
[1633130091087,1.96759831,3287.6,3287.3,0.03244762]
[1633130091288,1.96759831,3287.6,3287.4,0.003]
[1633130091689,6.71365831,3287.6,3287.4,0.003]
[1633130095294,0.25778014,3287.5,3287.4,0.003]
[1633130095493,0.25778014,3287.5,3286.9,0.006]
[1633130095756,1.95287022,3287.1,3286.9,0.006]
[1633130095896,0.25778014,3287.5,3286.9,0.006]
[1633130096093,0.25778014,3287.5,3286.9,2.38012994]
[1633130096492,14.8450197,3288.2,3287.0,6.11872401]
[1633130096693,14.8450197,3288.2,3287.0,0.03551401]
[1633130096896,0.87813165,3287.4,3287.1,0.003]
[1633130097092,11.8033,3288.2,3287.1,0.003]
[1633130097293,2.30943481,3288.0,3287.1,0.003]
[1633130097693,4.56318,3287.6,3287.1,0.003]
[1633130098092,1.95888659,3287.5,3287.1,1.98478007]
[1633130098293,2.80833694,3287.5,3287.1,0.003]
[1633130098497,2.80833694,3287.5,3287.2,0.003]
[1633130099393,7.37173694,3287.5,3287.2,0.003]
[1633130100794,3.06609277,3287.5,3287.2,0.003]
[1633130100997,3.06609277,3287.5,3286.9,0.006]
[1633130101198,3.06609277,3287.5,3286.6,0.006]
[1633130101792,7.62948277,3287.5,3286.6,4.56951]
[1633130101994,7.37172694,3287.5,3286.7,0.0295638]
[1633130102193,7.37172694,3287.5,3286.7,0.0355638]
[1633130102393,7.37172694,3287.5,3286.9,0.71162884]
[1633130102795,1.95888659,3287.5,3287.0,2.03315403]
[1633130103195,1.95888659,3287.5,3287.1,0.003]
[1633130103997,4.56349,3287.4,3287.1,0.003]
[1633130104196,4.56349,3287.4,3287.0,0.006]
[1633130104796,1.95888659,3287.5,3287.0,1.65888806]
[1633130105197,1.95888659,3287.5,3287.1,0.003]
[1633130106197,0.25774374,3287.5,3287.1,0.003]
[1633130107398,4.83396638,3287.6,3287.2,0.02948081]
[1633130107864,4.83396638,3287.6,3287.3,0.003]
[1633130109264,0.25776827,3287.5,3287.3,0.003]
[1633130109468,0.25776827,3287.5,3287.0,0.003]
[1633130109469,0.25776827,3287.5,3287.2,1.47251996]
[1633130109664,0.25776827,3287.5,3287.4,0.00871144]
[1633130110066,0.25776827,3287.5,3287.4,0.01171144]
[1633130110466,0.25776827,3287.5,3287.4,0.82958207]
[1633130110870,0.25776827,3287.5,3287.4,3.19769141]
[1633130111069,0.25776827,3287.5,3287.4,4.70219141]
[1633130111273,4.33535279,3288.5,3287.5,4.5]
[1633130111274,1.028,3288.5,3287.5,4.5]
[1633130111473,1.028,3288.5,3288.4,0.010178]
[1633130111674,1.028,3288.5,3288.4,1.571678]
[1633130112070,1.028,3288.5,3288.4,3.04851875]
[1633130112872,1.028,3288.5,3288.4,3.20651869]
[1633130113071,1.028,3288.5,3288.4,4.12761637]
[1633130114275,1.028,3288.5,3288.4,7.84106713]
[1633130114472,1.028,3288.5,3288.4,5.42161637]
[1633130114672,1.15712875,3288.5,3288.4,4.34251875]
[1633130114872,1.15712875,3288.5,3288.4,3.05723019]
[1633130116671,1.15712875,3288.5,3288.4,4.35123019]
[1633130118272,1.028,3288.5,3288.4,4.35123019]
[1633130118472,1.028,3288.5,3288.4,4.50923013]
[1633130120076,1.028,3288.5,3288.4,4.35123019]
[1633130120275,1.15712889,3288.5,3288.4,4.35123019]
[1633130120676,1.15712889,3288.5,3288.4,1.48571144]
[1633130121076,1.15712889,3288.5,3288.4,0.19171144]
[1633130121277,1.15712889,3288.5,3288.4,1.48571144]
[1633130121878,1.15712889,3288.5,3288.4,2.69930185]
[1633130122276,1.15712889,3288.5,3288.4,3.99330185]
[1633130122477,1.15712889,3288.5,3288.4,2.69930185]
[1633130123882,1.028,3288.5,3288.4,2.69930185]
[1633130124082,1.028,3288.5,3288.4,2.85730179]
[1633130124481,1.028,3288.5,3288.4,4.15130179]
[1633130124684,1.028,3288.5,3288.4,2.85730179]
[1633130124880,1.028,3288.5,3288.4,2.05932216]
[1633130125682,1.028,3288.5,3288.4,1.90132222]
[1633130125882,1.15712903,3288.5,3288.4,2.71467227]
[1633130126984,0.12912903,3288.5,3288.4,4.00867227]
[1633130127190,0.003,3289.0,3288.5,7.83925806]
[1633130127383,0.003,3289.0,3288.9,10.85461917]
[1633130127583,0.003,3289.0,3288.9,11.07181468]
[1633130127783,0.003,3289.0,3288.9,11.83920166]
[1633130127983,0.003,3289.0,3288.9,14.22439434]
[1633130128183,0.003,3289.0,3288.9,15.51839434]
[1633130128984,0.003,3289.0,3288.9,11.01839434]
[1633130129184,0.003,3289.0,3288.9,4.75062144]
[1633130129383,0.003,3289.0,3288.9,0.19171144]
[1633130129982,0.003,3289.0,3288.9,0.00871144]
[1633130130584,0.53436322,3289.0,3288.9,0.00871144]
[1633130130786,0.008737,3289.0,3288.9,0.00871144]
[1633130130983,3.20210121,3289.0,3288.9,0.00871144]
[1633130131184,2.39071315,3289.0,3288.9,0.00871144]
[1633130131384,3.26682404,3289.0,3288.9,0.00871144]
[1633130131786,2.91063016,3289.0,3288.9,0.00871144]
[1633130131985,2.38497615,3289.0,3288.9,0.00871144]
[1633130134993,2.3202771,3289.0,3288.9,0.00871144]
[1633130135187,0.003,3289.0,3288.9,0.00871144]
[1633130135988,2.26981788,3289.1,3288.9,0.00871144]
[1633130136191,3.14572879,3289.1,3288.5,3.33925806]
[1633130136388,0.879346,3288.6,3288.5,3.34225806]
[1633130136990,0.879346,3288.6,3288.5,5.36106844]
[1633130137190,0.59025565,3289.0,3288.5,3.34225806]
[1633130138188,0.84673921,3288.6,3288.5,3.34225806]
[1633130138787,0.59025565,3289.0,3288.5,3.34225806]
[1633130139791,1.49760928,3289.0,3288.5,3.34225806]
[1633130140193,0.97205283,3289.0,3288.5,3.34225806]
[1633130140389,0.90735363,3289.0,3288.6,0.22244837]
[1633130141593,0.90735363,3289.0,3288.8,0.00871144]
[1633130142194,0.97204075,3289.0,3288.8,0.00871144]
[1633130142993,0.06468712,3289.0,3288.8,0.00871144]
[1633130143996,0.06468712,3289.0,3288.8,4.56915144]
[1633130144195,0.06468712,3289.0,3288.8,0.00871144]
[1633130145897,3.33147761,3289.1,3288.8,0.00871144]
[1633130146097,2.80604324,3289.1,3288.9,0.22239863]
[1633130146296,0.52544713,3289.2,3288.9,0.22239863]
[1633130146897,0.52544713,3289.2,3289.0,0.00871144]
[1633130147499,2.3470211,3289.3,3289.0,0.00871144]
[1633130147700,2.11472391,3289.1,3289.0,0.00871144]
[1633130147902,0.06472391,3289.1,3289.0,0.00871144]
[1633130150602,0.06472391,3289.1,3289.0,5.52002825]
[1633130150802,0.06472391,3289.1,3289.0,5.89348768]
[1633130151003,0.003,3289.5,3289.2,0.34408102]
[1633130151205,0.003,3289.5,3289.4,4.73806789]
[1633130151405,0.003,3290.0,3289.6,0.31952141]
[1633130151604,0.003,3290.0,3289.9,4.81978831]
[1633130151805,0.003,3290.0,3289.9,5.00278831]
[1633130152205,0.003,3290.5,3290.1,0.32815793]
[1633130152405,0.003,3290.5,3290.4,4.75433737]
[1633130152604,0.003,3291.0,3290.9,5.38141312]
[1633130152808,0.003,3291.0,3290.9,14.55224184]
[1633130153008,0.003,3291.0,3290.9,16.11794184]
[1633130153205,0.003,3291.0,3290.9,11.61794184]
[1633130153605,0.035826,3291.0,3290.9,11.61794184]
[1633130154004,0.035826,3291.0,3290.9,9.0158625]
[1633130154205,0.035826,3291.0,3290.9,6.56874938]
[1633130154807,0.035826,3291.0,3290.9,7.86274938]
[1633130155006,0.035826,3291.0,3290.9,7.87100038]
[1633130155207,0.035826,3291.0,3290.9,7.28589276]
[1633130156871,0.003,3291.0,3290.9,7.28589276]
[1633130157071,0.003,3291.0,3290.9,5.01945806]
[1633130157272,0.003,3291.0,3290.9,0.183]
[1633130157472,0.003,3291.0,3290.9,0.19171144]
[1633130158674,0.003,3291.0,3290.9,0.00871144]
[1633130158882,0.03582614,3291.0,3290.9,0.00871144]
[1633130160886,0.03582614,3291.0,3290.9,4.56573144]
[1633130161882,0.03582614,3291.0,3290.9,9.07581739]
[1633130162082,0.03582614,3291.0,3290.9,9.60817444]
[1633130162483,0.003,3291.0,3290.9,9.60817444]
[1633130162684,0.003,3291.0,3290.9,7.14554798]
[1633130164484,0.03582628,3291.0,3290.9,7.14554798]
[1633130167888,0.003,3291.0,3290.9,7.14554798]
[1633130170085,0.03582642,3291.0,3290.9,7.14554798]
[1633130172886,0.03582642,3291.0,3290.9,5.85154798]
[1633130173288,0.003,3291.0,3290.9,5.85154798]
[1633130174688,0.003,3291.0,3290.9,5.49417893]
[1633130175088,0.003,3291.0,3290.9,4.74873144]
[1633130175489,0.03582656,3291.0,3290.9,4.74873144]
[1633130176289,0.03582656,3291.0,3290.9,5.63408223]
[1633130176890,0.03582656,3291.0,3290.9,4.74873144]
[1633130177691,4.57687594,3291.2,3290.9,4.74873144]
[1633130178093,4.57687594,3291.2,3291.0,0.27093014]
[1633130178292,4.57687594,3291.2,3291.1,0.42582069]
[1633130178494,4.57687594,3291.2,3291.1,1.1446737]
[1633130178691,4.57687594,3291.2,3291.1,0.183]
[1633130179096,4.57687594,3291.2,3291.1,0.4534448]
[1633130179292,4.57687594,3291.2,3291.1,5.0098848]
[1633130180893,4.57687594,3291.2,3291.1,4.73944]
[1633130181092,4.59332597,3291.2,3291.1,4.73944]
[1633130183695,4.59332597,3291.2,3291.1,4.74815144]
[1633130184298,4.57687594,3291.2,3291.1,4.74815144]
[1633130184494,4.57687594,3291.2,3291.1,5.01859624]
[1633130184695,0.003,3291.5,3291.2,5.67931888]
[1633130184899,0.003,3292.0,3291.6,0.34053904]
[1633130185097,0.003,3292.0,3291.9,4.81165414]
[1633130185294,0.003,3292.0,3291.9,4.99465414]
[1633130185496,0.003,3292.5,3292.1,0.32879727]
[1633130185697,0.003,3292.5,3292.4,0.91005878]
[1633130185897,0.003,3292.5,3292.4,4.73739]
[1633130186501,2.31363413,3292.5,3292.4,0.183]
[1633130186907,0.01977943,3292.5,3292.4,0.183]
[1633130187896,0.01977943,3292.5,3292.4,1.70204972]
[1633130188698,0.01977943,3292.5,3292.4,2.62647933]
[1633130188899,0.01977943,3292.5,3292.4,2.63519077]
[1633130189900,0.003,3292.5,3292.4,2.63519077]
[1633130190698,0.003,3292.5,3292.4,0.19171144]
[1633130191698,2.65106322,3292.5,3292.4,0.19171144]
[1633130192102,0.85488918,3292.5,3292.4,0.19171144]
[1633130192299,0.01977957,3292.5,3292.4,0.19171144]
[1633130192900,0.01977957,3292.5,3292.4,4.74705144]
[1633130193299,0.01977957,3292.5,3292.4,6.35852258]
[1633130193699,0.01977957,3292.5,3292.4,4.74705144]
[1633130195304,0.003,3292.5,3292.4,4.74705144]
[1633130197500,0.01977971,3292.5,3292.4,4.74705144]
[1633130197700,0.01677971,3292.5,3292.4,4.74705144]
[1633130200405,0.01677971,3292.5,3292.4,8.51605736]
[1633130200806,0.01677971,3292.5,3292.4,9.91285736]
[1633130201005,0.006,3292.8,3292.5,0.2699979]
[1633130201211,0.006,3292.8,3292.7,1.95565979]
[1633130201406,0.006,3292.8,3292.7,2.13865979]
[1633130201807,0.006,3292.8,3292.7,2.14737123]
[1633130202408,0.006,3292.8,3292.7,8.98390724]
[1633130203006,0.006,3292.8,3292.7,11.45829813]
[1633130203206,0.02285298,3292.8,3292.7,8.98390724]
[1633130204806,0.02285298,3292.8,3292.7,8.21915123]
[1633130205807,0.02285298,3292.8,3292.7,9.14930472]
[1633130206406,0.006,3292.8,3292.7,9.14930472]
[1633130206606,0.006,3292.8,3292.7,11.56200348]
[1633130206806,0.006,3292.8,3292.7,9.14930472]
[1633130207612,0.006,3292.8,3292.7,11.62240294]
[1633130207810,0.006,3292.9,3292.8,4.5]
[1633130208008,0.006,3292.9,3292.8,7.79190544]
[1633130208207,0.006,3292.9,3292.8,9.01520544]
[1633130208407,0.009,3293.5,3293.0,4.5]
[1633130208607,0.009,3293.5,3293.2,3.96928752]
[1633130208809,0.009,3293.5,3293.3,0.183]
[1633130209408,0.009,3293.5,3293.3,2.59513929]
[1633130209608,0.009,3293.5,3293.3,3.88913929]
[1633130209809,0.009,3293.5,3293.3,1.477]
[1633130210010,0.009,3293.5,3293.3,3.89967665]
[1633130210214,0.00681284,3293.4,3293.3,3.89967665]
[1633130210810,0.00681284,3293.4,3293.3,4.12166296]
[1633130211811,0.00681284,3293.4,3293.3,1.69898631]
[1633130212013,0.00681284,3293.4,3293.3,1.96870302]
[1633130212210,0.00681284,3293.4,3293.3,0.67470302]
[1633130213679,0.00681284,3293.4,3293.3,0.68341446]
[1633130214081,0.00681284,3293.4,3293.3,0.41369775]
[1633130214282,0.02380015,3293.4,3293.3,0.41369775]
[1633130217583,0.02380015,3293.4,3293.3,0.68341446]
[1633130217584,0.00681284,3293.4,3293.3,0.68341446]
[1633130218883,0.00681284,3293.4,3293.3,1.97741446]
[1633130219283,0.00681284,3293.4,3293.3,0.68341446]
[1633130219686,0.02380029,3293.4,3293.3,0.41369775]
[1633130222892,0.00681284,3293.4,3293.3,0.41369775]
[1633130223289,0.00681284,3293.4,3293.3,0.68341446]
[1633130223691,0.00681284,3293.4,3293.3,1.97741446]
[1633130223892,0.00681284,3293.4,3293.3,0.69143746]
[1633130224691,0.00681284,3293.4,3293.3,1.98543746]
[1633130225098,0.009,3293.5,3293.4,4.5]
[1633130225295,0.006,3293.8,3293.5,4.5]
[1633130225493,0.006,3293.8,3293.7,4.74897998]
[1633130225698,0.006,3293.8,3293.7,6.78270571]
[1633130225896,29.91235983,3294.0,3293.9,1.3214]
[1633130226096,0.021,3294.9,3294.0,5.1881884]
[1633130226298,0.006,3295.1,3295.0,2.0]
[1633130226494,2.2966647,3295.1,3295.0,12.14764008]
[1633130226693,0.006,3295.2,3295.1,5.28650371]
[1633130226894,0.006,3295.3,3295.2,5.55834685]
[1633130227093,0.006,3295.3,3295.2,30.88481859]
[1633130227694,0.006,3295.3,3295.2,27.13481859]
[1633130227894,0.006,3295.3,3295.2,7.66821691]
[1633130228299,0.006,3295.3,3295.2,4.78372718]
[1633130228497,0.006,3295.3,3295.2,4.748]
[1633130228693,0.006,3295.3,3295.2,5.01708869]
[1633130229295,0.006,3295.3,3295.2,6.55537503]
[1633130229495,0.006,3295.3,3295.2,6.56338103]
[1633130229696,0.006,3295.3,3295.2,6.60044051]
[1633130230294,0.006,3295.3,3295.2,7.3319565]
[1633130230695,0.02345044,3295.3,3295.2,7.06286781]
[1633130230899,0.02345044,3295.3,3295.2,7.07157925]
[1633130231297,0.02437444,3295.3,3295.2,7.07157925]
[1633130232296,0.02437444,3295.3,3295.2,5.49623343]
[1633130233500,0.02437444,3295.3,3295.2,7.48134763]
[1633130233695,0.02437444,3295.3,3295.2,6.74983164]
[1633130233897,0.02437444,3295.3,3295.2,4.76471744]
[1633130234096,0.006924,3295.3,3295.2,4.76471744]
[1633130234296,0.006924,3295.3,3295.2,5.03380613]
[1633130236102,0.006924,3295.3,3295.2,4.76471744]
[1633130236297,0.02437458,3295.3,3295.2,4.76471744]
[1633130237499,0.02437458,3295.3,3295.2,4.75671144]
[1633130238101,0.02843058,3295.3,3295.2,0.00871144]
[1633130238504,0.82395931,3295.3,3295.2,0.00871144]
[1633130238707,5.32395931,3295.3,3295.2,0.00871144]
[1633130238904,7.6036424,3295.3,3295.2,0.00871144]
[1633130239102,0.43324979,3295.1,3294.3,0.003]
[1633130239303,4.504201,3294.4,3294.3,0.003]
[1633130239504,5.786601,3294.4,3294.1,0.003]
[1633130240103,5.4569194,3294.2,3294.1,0.003]
[1633130240505,10.0108894,3294.2,3294.1,0.003]
[1633130241707,11.59813147,3294.0,3293.4,0.003]
[1633130242008,4.504792,3293.5,3293.2,0.003]
[1633130242207,6.052992,3293.5,3293.2,0.003]
[1633130242405,6.052992,3293.5,3292.5,0.009]
[1633130242607,8.50696924,3293.5,3292.4,0.009]
[1633130242807,1.50770465,3292.6,3292.4,0.009]
[1633130243008,1.1081,3292.6,3292.4,0.009]
[1633130243206,1.1081,3292.6,3292.2,0.009]
[1633130243406,1.1081,3292.6,3292.3,0.183]
[1633130243805,1.1081,3292.6,3292.4,0.009]
[1633130244011,1.1081,3292.6,3292.5,4.55475]
[1633130244204,1.82826359,3293.4,3292.5,4.55475]
[1633130244406,1.82826359,3293.4,3292.5,4.56375]
[1633130244606,1.82826359,3293.4,3292.6,0.006]
[1633130245209,1.77531647,3292.9,3292.4,0.009]
[1633130245405,0.6105,3293.5,3292.4,0.009]
[1633130245606,0.6105,3293.5,3292.7,0.26983248]
[1633130245808,0.75595791,3293.4,3292.7,0.26983248]
[1633130246007,0.75595791,3293.4,3292.8,0.006]
[1633130246612,1.73664145,3293.2,3292.8,0.006]
[1633130246808,0.75595791,3293.4,3292.8,0.006]
[1633130247208,4.5,3293.3,3292.5,0.88963151]
[1633130247407,4.51692723,3293.3,3292.5,0.88963151]
[1633130247608,4.51692723,3293.3,3292.5,0.89263151]
[1633130247808,1.98054287,3293.3,3292.5,0.89263151]
[1633130248208,0.01692723,3293.3,3292.5,0.89263151]
[1633130249009,0.99573844,3293.3,3292.5,0.89263151]
[1633130249213,1.70713929,3293.0,3292.5,0.003]
[1633130249608,1.70713929,3293.0,3292.4,0.003]
[1633130249808,1.70713929,3293.0,3291.9,0.006]
[1633130250209,0.75727282,3292.2,3291.9,0.006]
[1633130250408,7.22144343,3293.0,3291.9,0.006]
[1633130250609,4.55587,3293.0,3291.9,0.006]
[1633130250808,6.98034048,3293.0,3291.9,0.006]
[1633130251010,6.98034048,3293.0,3292.0,0.27001445]
[1633130251209,0.6307,3293.1,3292.0,0.27001445]
[1633130251410,1.54545671,3292.6,3292.1,0.82295735]
[1633130251812,1.54545671,3292.6,3292.2,0.003]
[1633130252211,2.44285583,3292.9,3292.1,0.003]
[1633130252409,3.96107377,3293.0,3292.1,0.003]
[1633130252812,0.01674455,3292.5,3292.2,0.76313195]
[1633130253210,0.01674455,3292.5,3292.3,0.003]
[1633130254814,0.01674455,3292.5,3292.0,0.006]
[1633130255214,0.01674455,3292.5,3292.0,0.78554546]
[1633130255613,0.01674455,3292.5,3292.1,0.003]
[1633130256416,2.57249384,3293.1,3292.1,0.186]
[1633130256616,4.55814,3293.5,3292.2,0.27004754]
[1633130256815,4.55814,3293.5,3292.2,0.27304754]
[1633130257020,1.92162055,3292.9,3292.3,0.003]
[1633130257214,0.83073943,3293.1,3292.3,0.003]
[1633130258215,0.01683001,3293.0,3292.3,0.003]
[1633130258615,0.01683001,3293.0,3292.2,0.003]
[1633130259217,1.49301937,3292.6,3292.2,0.003]
[1633130262084,1.49301937,3292.6,3292.3,0.270031]
[1633130262482,1.49301937,3292.6,3292.4,0.003]
[1633130263684,3.2667814,3292.5,3292.4,0.003]
[1633130263887,0.0167814,3292.5,3292.4,0.003]
[1633130264088,0.0167814,3292.5,3292.2,0.003]
[1633130264286,0.0167814,3292.5,3292.2,4.55819]
[1633130264688,0.0167814,3292.5,3292.3,0.003]
[1633130265691,0.0167814,3292.5,3292.3,4.55805]
[1633130266090,0.0167814,3292.5,3292.4,0.003]
[1633130267495,1.64177092,3292.9,3292.5,0.2699979]
[1633130267891,1.64177092,3292.9,3292.5,0.2729979]
[1633130269094,1.64177092,3292.9,3292.5,0.003]
[1633130269294,1.6586134,3292.9,3292.5,0.003]
[1633130269493,1.6586134,3292.9,3292.4,0.003]
[1633130270294,0.01684248,3292.9,3292.3,3.03951]
[1633130270496,0.01684248,3292.9,3292.8,4.258627]
[1633130270696,0.01684248,3292.9,3292.8,0.503925]
[1633130270894,0.01684248,3292.9,3292.8,0.183]
[1633130271896,0.01684248,3292.9,3292.8,4.73705]
[1633130272096,0.01684248,3292.9,3292.8,0.183]
[1633130272295,0.02108348,3292.9,3292.8,0.183]
[1633130272495,0.02108348,3292.9,3292.5,0.003]
[1633130272897,1.45898012,3293.1,3292.3,0.73056109]
[1633130273097,1.45898012,3293.1,3292.6,0.26991519]
[1633130274297,1.45898012,3293.1,3292.6,4.82487519]
[1633130274697,0.016867,3293.0,3292.6,4.55496]
[1633130278501,0.003,3293.5,3292.6,4.55496]
[1633130278702,0.003,3293.5,3293.0,4.32992]
[1633130278904,0.003,3293.5,3293.0,3.29126422]
[1633130279102,1.60777641,3293.5,3293.0,3.47426422]
[1633130279501,2.48254618,3293.5,3293.0,0.183]
[1633130279903,2.48254618,3293.5,3293.1,3.03584]
[1633130280407,0.01696463,3293.4,3293.1,3.03584]
[1633130280803,0.01696463,3293.4,3293.3,4.55398]
[1633130281404,1.84151638,3293.4,3293.3,4.55398]
[1633130281604,0.01696463,3293.4,3293.3,4.55398]
[1633130283806,0.01696463,3293.4,3293.3,6.038995]
[1633130284006,0.003,3293.5,3293.3,6.30871171]
[1633130284205,0.003,3293.5,3293.3,5.01471171]
[1633130284811,0.003,3293.5,3293.4,1.294]
[1633130285005,0.003,3293.5,3293.4,6.25348]
[1633130285207,0.003,3293.5,3293.4,0.183]
[1633130285807,1.91798222,3293.5,3293.4,0.183]
[1633130286205,0.0200135,3293.5,3293.4,0.183]
[1633130289410,0.003,3293.5,3293.4,0.183]
[1633130289610,0.003,3293.5,3293.4,0.45268364]
[1633130291211,0.003,3293.5,3293.4,0.183]
[1633130291411,0.02001364,3293.5,3293.4,0.183]
[1633130295013,0.003,3293.5,3293.4,0.45268364]
[1633130296615,0.003,3293.5,3293.4,0.183]
[1633130296819,0.02001378,3293.5,3293.4,0.183]
[1633130297421,0.02001378,3293.5,3293.4,1.485]
[1633130297617,0.02001378,3293.5,3293.4,3.23177492]
[1633130297818,0.02001378,3293.5,3293.4,5.34600121]
[1633130298015,0.02001378,3293.5,3293.4,3.1986]
[1633130298417,0.02001378,3293.5,3293.4,1.9046]
[1633130298620,0.02001378,3293.5,3293.4,7.9748]
[1633130298817,0.02001378,3293.5,3293.4,9.2688]
[1633130299018,0.02001378,3293.5,3293.4,7.9748]
[1633130300017,0.02001378,3293.5,3293.4,9.2688]
[1633130300416,0.003,3293.5,3293.4,9.2688]
[1633130300614,0.003,3293.5,3293.4,9.53848364]
[1633130301419,0.003,3293.5,3293.4,8.24448364]
[1633130302218,0.02001392,3293.5,3293.4,7.9748]
[1633130302620,0.02001392,3293.5,3293.4,9.2688]
[1633130303421,0.02001392,3293.5,3293.4,7.9748]
[1633130305426,0.02001392,3293.5,3293.4,6.2532]
[1633130305626,0.02001392,3293.5,3293.4,0.183]
[1633130305890,0.003,3293.5,3293.4,0.183]
[1633130306089,0.003,3293.5,3293.4,0.45268364]
[1633130307691,0.003,3293.5,3293.4,0.183]
[1633130307892,0.02001406,3293.5,3293.4,0.183]
[1633130309995,0.02001406,3293.5,3293.4,4.73661]
[1633130311598,0.003,3293.5,3293.4,5.00629364]
[1633130313197,0.003,3293.5,3293.4,4.73661]
[1633130313396,0.0200142,3293.5,3293.4,4.73661]
[1633130314596,2.07706553,3293.5,3293.4,4.73661]
[1633130315096,0.0200142,3293.5,3293.4,4.73661]
[1633130316997,0.003,3293.5,3293.4,5.00629364]
[1633130318598,0.80725983,3293.5,3293.4,4.73661]
[1633130318800,0.80725983,3293.5,3292.6,3.03563]
[1633130318801,1.89709268,3293.3,3292.6,3.03563]
[1633130319101,0.03147999,3293.0,3292.5,0.003]
[1633130319304,1.31067999,3293.0,3292.5,0.003]
[1633130319499,1.31067999,3293.0,3292.2,0.17914274]
[1633130319699,0.74623345,3292.7,3292.3,0.003]
[1633130319902,1.78647451,3292.6,3292.3,0.003]
[1633130320299,4.55551,3292.9,3292.3,0.003]
[1633130320500,0.007334,3293.0,3292.3,0.003]
[1633130320699,0.007334,3293.0,3292.2,0.003]
[1633130321101,1.89709268,3293.3,3292.4,0.82719044]